lending/lending_fUSD_20260306
["ID","MTS","AMOUNT","RATE_DAILY","PERIOD"]
[407802891,1772811041070,-1339.0,0.0001642,2]
[407802892,1772811041080,-500.0,0.0001642,2]
[407802893,1772811041089,-500.0,0.0001642,2]
[407802894,1772811041099,-501.14447522,0.0001642,2]
[407802895,1772811041108,-150.0,0.0001642,2]
[407802896,1772811041117,-1500.0,0.0001642,2]
[407802897,1772811041127,-2800.840232,0.0001642,2]
[407802898,1772811041136,-179.45599622,0.0001642,2]
[407802899,1772811041146,-2178.0,0.00016438,2]
[407802900,1772811041155,-500.0,0.00016438,2]
[407802901,1772811041164,-1489.71509886,0.00016468,2]
[407802902,1772811041174,-1500.0,0.00016468,2]
[407802903,1772811041183,-1500.0,0.00016468,2]
[407802904,1772811041193,-1500.0,0.00016468,2]
[407802905,1772811041202,-1134.58548457,0.00016468,2]
[407802906,1772811041212,-1000.0,0.00016468,2]
[407802907,1772811041221,-1000.0,0.00016468,2]
[407802908,1772811041231,-1500.0,0.00016468,2]
[407802909,1772811041240,-1500.0,0.00016468,2]
[407802910,1772811041250,-237.29585287,0.00016473,2]
[407802911,1772811041260,-302.4,0.000165,2]
[407802912,1772811041270,-302.4,0.000165,30]
[407802913,1772811041565,-665.28,0.000165,2]
[407802914,1772811041575,-465.7,0.000165,2]
[407802915,1772811041585,-465.7,0.000165,30]
[407802916,1772811041595,-707.0,0.00016694,2]
[407802917,1772811041606,-500.0,0.00016694,2]
[407802918,1772811041618,-999.0,0.00016694,2]
[407802919,1772811041627,-500.0,0.00016694,2]
[407802920,1772811041636,-150.0,0.00016694,2]
[407802921,1772811041646,-964.0,0.00016694,2]
[407802922,1772811041658,-150.0,0.00016694,2]
[407802923,1772811041667,-500.0,0.00016694,2]
[407802924,1772811041678,-189.68586623,0.00016694,2]
[407802925,1772811041687,-1262.0,0.00016694,2]
[407802926,1772811041698,-597.0,0.00016694,2]
[407802927,1772811041708,-150.0,0.00016694,2]
[407802928,1772811041718,-539.0,0.00016694,2]
[407802929,1772811041730,-566.0,0.00016694,2]
[407802930,1772811041742,-500.0,0.00016694,2]
[407802931,1772811041752,-1254.0,0.00016694,2]
[407802932,1772811041762,-500.0,0.00016694,2]
[407802933,1772811041771,-500.0,0.00016694,2]
[407802934,1772811041781,-500.0,0.00016694,2]
[407802935,1772811041794,-500.0,0.00016694,2]
[407802936,1772811041804,-502.0,0.00016694,2]
[407802937,1772811041814,-150.0,0.00016694,2]
[407802938,1772811041824,-500.0,0.00016694,2]
[407802939,1772811041836,-1339.0,0.00016694,2]
[407802940,1772811041846,-500.0,0.00016694,2]
[407802941,1772811041856,-500.0,0.00016694,2]
[407802942,1772811041867,-150.0,0.00016694,2]
[407802943,1772811041878,-2178.0,0.00016712,2]
[407802944,1772811041888,-500.0,0.00016712,2]
[407802945,1772811041898,-835.69490134,0.00016718,2]
[407802946,1772811041908,-9711.35565334,0.00016767,2]
[407802947,1772811041918,-150.0,0.00016804,2]
[407802948,1772811041928,-2348.05020495,0.00016834,2]
[407802949,1772811041937,-2500.0,0.00016864,2]
[407802950,1772811041947,-433.0,0.00016943,2]
[407802951,1772811041956,-707.0,0.00016968,2]
[407802952,1772811041968,-500.0,0.00016968,2]
[407802953,1772811041978,-999.0,0.00016968,2]
[407802954,1772811041991,-500.0,0.00016968,2]
[407802955,1772811042000,-150.0,0.00016968,2]
[407802956,1772811042011,-964.0,0.00016968,2]
[407802957,1772811042020,-150.0,0.00016968,2]
[407802958,1772811042030,-500.0,0.00016968,2]
[407802959,1772811042040,-1262.0,0.00016968,2]
[407802960,1772811042049,-597.0,0.00016968,2]
[407802961,1772811042059,-150.0,0.00016968,2]
[407802962,1772811042069,-539.0,0.00016968,2]
[407802963,1772811042078,-500.0,0.00016968,2]
[407802964,1772811042088,-566.0,0.00016968,2]
[407802965,1772811042097,-1254.0,0.00016968,2]
[407802966,1772811042107,-500.0,0.00016968,2]
[407802967,1772811042117,-500.0,0.00016968,2]
[407802968,1772811042126,-500.0,0.00016968,2]
[407802969,1772811042136,-500.0,0.00016968,2]
[407802970,1772811042145,-502.0,0.00016968,2]
[407802971,1772811042155,-150.0,0.00016968,2]
[407802972,1772811042164,-500.0,0.00016968,2]
[407802973,1772811042174,-1339.0,0.00016968,2]
[407802974,1772811042195,-500.0,0.00016968,2]
[407802975,1772811042205,-500.0,0.00016968,2]
[407802976,1772811042215,-150.0,0.00016968,2]
[407802977,1772811042225,-2178.0,0.00016986,2]
[407802978,1772811042235,-500.0,0.00016986,2]
[407802979,1772811042244,-500.0,0.00016999,2]
[407802980,1772811042254,-500.0,0.00016999,2]
[407802981,1772811042264,-442.99956491,0.00017016,2]
[407802982,1772811042274,-2000.0,0.00017016,2]
[407802983,1772811042284,-2000.0,0.00017016,2]
[407802984,1772811042294,-2000.0,0.00017016,2]
[407802985,1772811042304,-1278.57186039,0.00017016,2]
[407802986,1772811042314,-1852.42,0.00017044,2]
[407802987,1772811042324,-746.50799756,0.00017183,2]
[407802988,1772811042334,-707.0,0.00017242,2]
[407802989,1772811042344,-500.0,0.00017242,2]
[407802990,1772811042353,-999.0,0.00017242,2]
[407802991,1772811042363,-500.0,0.00017242,2]
[407802992,1772811042373,-150.0,0.00017242,2]
[407802993,1772811042382,-964.0,0.00017242,2]
[407802994,1772811042392,-150.0,0.00017242,2]
[407802995,1772811042402,-500.0,0.00017242,2]
[407802996,1772811042411,-1262.0,0.00017242,2]
[407802997,1772811042421,-597.0,0.00017242,2]
[407802998,1772811042431,-150.0,0.00017242,2]
[407802999,1772811042440,-539.0,0.00017242,2]
[407803000,1772811042450,-500.0,0.00017242,2]
[407803001,1772811042460,-566.0,0.00017242,2]
[407803002,1772811042470,-1254.0,0.00017242,2]
[407803003,1772811042479,-500.0,0.00017242,2]
[407803004,1772811042490,-500.0,0.00017242,2]
[407803005,1772811042500,-500.0,0.00017242,2]
[407803006,1772811042509,-500.0,0.00017242,2]
[407803007,1772811042520,-502.0,0.00017242,2]
[407803008,1772811042529,-150.0,0.00017242,2]
[407803009,1772811042539,-500.0,0.00017242,2]
[407803010,1772811042549,-1339.0,0.00017242,2]
[407803011,1772811042559,-500.0,0.00017242,2]
[407803012,1772811042568,-180.19786508,0.00017242,2]
[407803013,1772811042578,-150.0,0.00017242,2]
[407803014,1772811042589,-2178.0,0.0001726,2]
[407803015,1772811042602,-500.0,0.0001726,2]
[407803016,1772811042619,-9711.35565334,0.00017289,2]
[407803017,1772811042629,-150.0,0.0001732,2]
[407803018,1772811042639,-3000.0,0.00017412,2]
[407803020,1772811042650,-20418.27,0.0001751,7]
[407803021,1772811042660,-2041.83,0.0001751,7]
[407803022,1772811042669,-160.0,0.0001751,7]
[407803023,1772811042679,-707.0,0.00017516,2]
[407803024,1772811042689,-500.0,0.00017516,2]
[407803025,1772811042698,-999.0,0.00017516,2]
[407803026,1772811042707,-500.0,0.00017516,2]
[407803027,1772811042717,-250.0,0.00017516,2]
[407803028,1772811042726,-964.0,0.00017516,2]
[407803029,1772811042738,-250.0,0.00017516,2]
[407803030,1772811042748,-500.0,0.00017516,2]
[407803032,1772811042758,-1262.0,0.00017516,2]
[407803033,1772811042767,-597.0,0.00017516,2]
[407803034,1772811042777,-158.6738188,0.00017516,2]
[407803035,1772811042787,-539.0,0.00017516,2]
[407803036,1772811042796,-566.0,0.00017516,2]
[407803037,1772811042806,-500.0,0.00017516,2]
[407803038,1772811042815,-1254.0,0.00017516,2]
[407803039,1772811042825,-568.0,0.00017516,2]
[407803040,1772811042834,-500.0,0.00017516,2]
[407803041,1772811042844,-500.0,0.00017516,2]
[407803042,1772811042853,-500.0,0.00017516,2]
[407803043,1772811042862,-502.0,0.00017516,2]
[407803044,1772811042872,-250.0,0.00017516,2]
[407803045,1772811042881,-553.09495447,0.00017516,2]
[407803046,1772811042890,-1339.0,0.00017516,2]
[407803047,1772811042900,-500.0,0.00017516,2]
[407803048,1772811042909,-250.0,0.00017516,2]
[407803049,1772811042918,-2178.0,0.00017534,2]
[407803050,1772811042928,-179.22864957,0.00017534,2]
[407803051,1772811042937,-2351.0,0.00017552,2]
[407803052,1772811042947,-1680.57628362,0.00017564,2]
[407803053,1772811042956,-2500.0,0.00017564,2]
[407803054,1772811042966,-2500.0,0.00017564,2]
[407803055,1772811042975,-2348.05020495,0.000176,2]
[407803056,1772811042987,-599.09196005,0.00017636,2]
[407803057,1772811042996,-1253.62107363,0.00017636,2]
[407803058,1772811043006,-594.77135874,0.00017636,2]
[407803059,1772811043016,-707.0,0.0001779,2]
[407803060,1772811043026,-500.0,0.0001779,2]
[407803061,1772811043035,-999.0,0.0001779,2]
[407803062,1772811043045,-348.93054391,0.0001779,2]
[407803063,1772811043055,-964.0,0.0001779,2]
[407803064,1772811043064,-500.0,0.0001779,2]
[407803065,1772811043074,-1262.0,0.0001779,2]
[407803066,1772811043084,-597.0,0.0001779,2]
[407803067,1772811043093,-539.0,0.0001779,2]
[407803068,1772811043105,-566.0,0.0001779,2]
[407803069,1772811043115,-500.0,0.0001779,2]
[407803070,1772811043124,-1254.0,0.0001779,2]
[407803071,1772811043134,-500.0,0.0001779,2]
[407803072,1772811043145,-320.49208908,0.0001779,2]
[407803073,1772811043155,-500.0,0.0001779,2]
[407803074,1772811043166,-502.0,0.0001779,2]
[407803075,1772811043175,-1339.0,0.0001779,2]
[407803076,1772811043185,-500.0,0.0001779,2]
[407803078,1772811043196,-2178.0,0.00017808,2]
[407803079,1772811043205,-563.0,0.00017808,2]
[407803080,1772811043215,-800.0,0.00017808,2]
[407803081,1772811043225,-9711.35565334,0.00017812,2]
[407803082,1772811043236,-291.19125143,0.00017836,2]
[407803083,1772811043246,-500.0,0.0001786,2]
[407803084,1772811043255,-150.0,0.0001786,2]
[407803085,1772811043265,-228.20561973,0.0001786,2]
[407803086,1772811043274,-500.0,0.0001786,2]
[407803087,1772811043285,-500.0,0.0001796,2]
[407803088,1772811043294,-182.80013699,0.00018,2]
[407803091,1772811043303,-15313.7,0.00018035,7]
[407803093,1772811043312,-1531.37,0.00018035,7]
[407803095,1772811043322,-707.0,0.00018064,2]
[407803097,1772811043331,-627.92320677,0.00018064,2]
[407803098,1772811043341,-999.0,0.00018064,2]
[407803099,1772811043351,-964.0,0.00018064,2]
[407803100,1772811043361,-500.0,0.00018064,2]
[407803101,1772811043372,-1262.0,0.00018064,2]
[407803102,1772811043382,-597.0,0.00018064,2]
[407803103,1772811043392,-539.0,0.00018064,2]
[407803104,1772811043402,-566.0,0.00018064,2]
[407803105,1772811043414,-500.0,0.00018064,2]
[407803106,1772811043424,-1254.0,0.00018064,2]
[407803107,1772811043433,-500.0,0.00018064,2]
[407803108,1772811043443,-500.0,0.00018064,2]
[407803109,1772811043455,-502.0,0.00018064,2]
[407803110,1772811043467,-1339.0,0.00018064,2]
[407803111,1772811043476,-500.0,0.00018064,2]
[407803112,1772811043486,-2178.0,0.00018082,2]
[407803113,1772811043496,-563.0,0.00018082,2]
[407803114,1772811043506,-746.50799756,0.00018089,2]
[407803115,1772811043516,-3000.0,0.00018112,2]
[407803116,1772811043526,-3000.0,0.00018112,2]
[407803117,1772811043536,-500.0,0.00018134,2]
[407803118,1772811043546,-150.0,0.00018134,2]
[407803119,1772811043555,-500.0,0.00018134,2]
[407803120,1772811043567,-736.0,0.00018243,2]
[407803121,1772811043577,-9711.35565334,0.00018334,2]
[407803122,1772811043588,-707.0,0.00018338,2]
[407803123,1772811043599,-999.0,0.00018338,2]
[407803124,1772811043612,-964.0,0.00018338,2]
[407803125,1772811043622,-500.0,0.00018338,2]
[407803126,1772811043632,-1262.0,0.00018338,2]
[407803127,1772811043644,-597.0,0.00018338,2]
[407803128,1772811043654,-539.0,0.00018338,2]
[407803129,1772811043663,-566.0,0.00018338,2]
[407803130,1772811043673,-500.0,0.00018338,2]
[407803131,1772811043683,-1254.0,0.00018338,2]
[407803132,1772811043692,-500.0,0.00018338,2]
[407803133,1772811043702,-573.44789223,0.00018338,2]
[407803134,1772811043713,-502.0,0.00018338,2]
[407803135,1772811043723,-1339.0,0.00018338,2]
[407803136,1772811043732,-192.44220741,0.00018338,2]
[407803137,1772811043744,-2178.0,0.00018356,2]
[407803138,1772811043754,-563.0,0.00018356,2]
[407803139,1772811043764,-2348.05020495,0.00018367,2]
[407803140,1772811043775,-500.0,0.00018408,2]
[407803141,1772811043785,-500.0,0.00018408,2]
[407803142,1772811043794,-223.27,0.00018482,14]
[407803143,1772811043803,-151.0,0.000185,2]
[407803144,1772811043813,-9999.99,0.00018533,2]
[407803145,1772811043822,-10209.13,0.00018561,7]
[407803146,1772811043831,-1020.91,0.00018561,7]
[407803147,1772811043843,-301.78790722,0.000186,2]
[407803148,1772811043855,-500.0,0.000186,2]
[407803149,1772811043867,-500.0,0.000186,2]
[407803150,1772811043877,-500.0,0.000186,2]
[407803151,1772811043886,-500.0,0.000186,2]
[407803152,1772811043896,-707.0,0.00018612,2]
[407803153,1772811043907,-999.0,0.00018612,2]
[407803154,1772811043918,-964.0,0.00018612,2]
[407803155,1772811043929,-500.0,0.00018612,2]
[407803156,1772811043939,-1262.0,0.00018612,2]
[407803157,1772811043950,-597.0,0.00018612,2]
[407803158,1772811043962,-566.0,0.00018612,2]
[407803159,1772811043973,-539.0,0.00018612,2]
[407803160,1772811043982,-500.0,0.00018612,2]
[407803161,1772811044111,-1254.0,0.00018612,2]
[407803162,1772811044121,-500.0,0.00018612,2]
[407803163,1772811044131,-502.0,0.00018612,2]
[407803164,1772811044140,-1339.0,0.00018612,2]
[407803165,1772811044150,-2178.0,0.0001863,2]
[407803166,1772811044160,-563.0,0.0001863,2]
[407803167,1772811044170,-1088.87470879,0.0001866,2]
[407803168,1772811044180,-500.0,0.0001866,2]
[407803169,1772811044190,-500.0,0.00018682,2]
[407803170,1772811044199,-356.19330676,0.00018682,2]
[407803171,1772811044209,-9718.90833483,0.00018702,2]
[407803172,1772811044219,-151.0,0.000188,2]
[407803173,1772811044228,-200.0,0.00018807,2]
[407803174,1772811044239,-9711.35565334,0.00018856,2]
[407803175,1772811044248,-29547.53,0.0001887,2]
[407803176,1772811044258,-151.04766822,0.00018885,5]
[407803177,1772811044268,-707.0,0.00018886,2]
[407803178,1772811044278,-999.0,0.00018886,2]
[407803179,1772811044288,-964.0,0.00018886,2]
[407803180,1772811044298,-266.60867263,0.00018886,2]
[407803181,1772811044307,-1262.0,0.00018886,2]
[407803182,1772811044317,-597.0,0.00018886,2]
[407803183,1772811044327,-566.0,0.00018886,2]
[407803184,1772811044337,-539.0,0.00018886,2]
[407803185,1772811044347,-500.0,0.00018886,2]
[407803186,1772811044358,-1254.0,0.00018886,2]
[407803187,1772811044369,-500.0,0.00018886,2]
[407803188,1772811044378,-502.0,0.00018886,2]
[407803189,1772811044388,-1339.0,0.00018886,2]
[407803190,1772811044397,-2178.0,0.00018904,2]
[407803191,1772811044407,-563.0,0.00018904,2]
[407803192,1772811044416,-500.0,0.00018956,2]
[407803193,1772811044425,-500.0,0.00018973,2]
[407803194,1772811044434,-746.50799756,0.00018994,2]
[407803195,1772811044444,-168.23728436,0.00019,2]
[407803196,1772811044453,-4000.0,0.00019006,2]
[407803197,1772811044463,-2348.05020495,0.00019133,2]
[407803198,1772811044472,-849.85488597,0.00019148,2]
[407803199,1772811044481,-1000.0,0.00019148,2]
[407803200,1772811044492,-1000.0,0.00019148,2]
[407803201,1772811044501,-1000.0,0.00019148,2]
[407803202,1772811044511,-707.0,0.0001916,2]
[407803203,1772811044520,-999.0,0.0001916,2]
[407803204,1772811044530,-964.0,0.0001916,2]
[407803205,1772811044540,-1262.0,0.0001916,2]
[407803206,1772811044550,-597.0,0.0001916,2]
[407803207,1772811044559,-566.0,0.0001916,2]
[407803208,1772811044569,-539.0,0.0001916,2]
[407803209,1772811044579,-500.0,0.0001916,2]
[407803210,1772811044588,-1254.0,0.0001916,2]
[407803211,1772811044598,-500.0,0.0001916,2]
[407803212,1772811044610,-502.0,0.0001916,2]
[407803213,1772811044619,-1339.0,0.0001916,2]
[407803214,1772811044628,-2178.0,0.00019178,2]
[407803215,1772811044638,-563.0,0.00019178,2]
[407803216,1772811044648,-150.0,0.00019178,2]
[407803217,1772811044657,-150.0,0.00019178,2]
[407803218,1772811044666,-500.0,0.0001923,2]
[407803219,1772811044677,-9718.90833483,0.00019301,2]
[407803220,1772811044686,-500.0,0.00019303,2]
[407803221,1772811044696,-3292.0,0.00019307,2]
[407803222,1772811044707,-168.0,0.00019335,2]
[407803223,1772811044716,-9711.35565334,0.00019378,2]
[407803224,1772811044727,-444.3243859,0.0001939,2]
[407803225,1772811044736,-707.0,0.00019434,2]
[407803226,1772811044746,-999.0,0.00019434,2]
[407803227,1772811044756,-964.0,0.00019434,2]
[407803228,1772811044765,-1262.0,0.00019434,2]
[407803229,1772811044776,-597.0,0.00019434,2]
[407803230,1772811044787,-566.0,0.00019434,2]
[407803231,1772811044797,-539.0,0.00019434,2]
[407803232,1772811044808,-500.0,0.00019434,2]
[407803233,1772811044817,-1254.0,0.00019434,2]
[407803234,1772811044827,-500.0,0.00019434,2]
[407803235,1772811044838,-502.0,0.00019434,2]
[407803236,1772811044848,-1339.0,0.00019434,2]
[407803237,1772811044858,-2178.0,0.00019452,2]
[407803238,1772811044868,-563.0,0.00019452,2]
[407803239,1772811044878,-4000.0,0.00019481,2]
[407803240,1772811044887,-400.0,0.00019504,2]
[407803241,1772811044897,-168.0,0.00019638,2]
[407803242,1772811044907,-450.0,0.00019645,2]
[407803243,1772811044916,-1000.0,0.00019696,2]
[407803244,1772811044928,-1500.0,0.00019696,2]
[407803245,1772811044939,-1500.0,0.00019696,2]
[407803246,1772811044950,-9355.50408634,0.000197,2]
[407803247,1772811044961,-707.0,0.00019708,2]
[407803248,1772811044972,-999.0,0.00019708,2]
[407803249,1772811044982,-964.0,0.00019708,2]
[407803250,1772811044992,-1262.0,0.00019708,2]
[407803251,1772811045001,-597.0,0.00019708,2]
[407803252,1772811045011,-566.0,0.00019708,2]
[407803253,1772811045021,-539.0,0.00019708,2]
[407803254,1772811045030,-500.0,0.00019708,2]
[407803255,1772811045040,-246.79273833,0.00019708,2]
[407803256,1772811045049,-1254.0,0.00019708,2]
[407803257,1772811045059,-502.0,0.00019708,2]
[407803258,1772811045069,-1339.0,0.00019708,2]
[407803259,1772811045078,-2178.0,0.00019726,2]
[407803260,1772811045088,-563.0,0.00019726,2]
[407803261,1772811045097,-500.0,0.00019726,2]
[407803262,1772811045107,-265.24292304,0.00019726,2]
[407803263,1772811045116,-250.0,0.00019726,2]
[407803264,1772811045126,-250.0,0.00019726,2]
[407803265,1772811045135,-355.08533532,0.000198,2]
[407803266,1772811045144,-144171.41743772,0.0001981,2]
[407803267,1772811045154,-160.0,0.00019868,2]
[407803268,1772811045163,-172.74325605,0.00019868,2]
[407803269,1772811045173,-500.0,0.00019873,2]
[407803270,1772811045182,-500.0,0.00019873,2]
[407803271,1772811045192,-5800.0,0.00019892,2]
[407803272,1772811045202,-168.0,0.00019895,2]
[407803273,1772811045211,-1130.67785309,0.00019899,5]
[407803274,1772811045221,-739531.9847,0.000199,2]
[407803275,1772811045231,-25000.0,0.000199,3]
[407803276,1772811045242,-2148.8308,0.000199,2]
[407803277,1772811045252,-150.0,0.000199,2]
[407803278,1772811045261,-200.72181509,0.000199,2]
[407803279,1772811045271,-9718.90833483,0.000199,2]
[407803280,1772811045281,-160.0,0.000199,3]
[407803281,1772811045290,-5800.0,0.000199,2]
[407803282,1772811045300,-599.09196005,0.000199,2]
[407803283,1772811045309,-1253.62107363,0.000199,2]
[407803284,1772811045318,-2348.05020495,0.000199,2]
[407803285,1772811045327,-594.77135874,0.000199,2]
[407803286,1772811045337,-746.50799756,0.000199,2]
[407803287,1772811045348,-157.40983265,0.000199,2]
[407803288,1772811045358,-9711.35565334,0.000199,2]
[407803289,1772811045370,-168.0,0.00019915,2]
[407803290,1772811045380,-168.0,0.00019951,2]
[407803291,1772811045391,-4000.0,0.00019956,2]
[407803292,1772811045402,-228.86981007,0.00019962,2]
[407803293,1772811045412,-446.12402339,0.00019973,2]
[407803294,1772811045424,-534.41020395,0.0001998,2]
[407803295,1772811045434,-707.0,0.00019982,2]
[407803296,1772811045444,-999.0,0.00019982,2]
[407803297,1772811045456,-964.0,0.00019982,2]
[407803298,1772811045465,-1262.0,0.00019982,2]
[407803299,1772811045475,-597.0,0.00019982,2]
[407803300,1772811045484,-566.0,0.00019982,2]
[407803301,1772811045493,-539.0,0.00019982,2]
[407803302,1772811045503,-500.0,0.00019982,2]
[407803303,1772811045512,-1254.0,0.00019982,2]
[407803304,1772811045522,-502.0,0.00019982,2]
[407803305,1772811045531,-1339.0,0.00019982,2]
[407803306,1772811045540,-168.0,0.00019984,2]
[407803307,1772811045549,-355.08533532,0.0001999,2]
[407803308,1772811045558,-1535.4002987,0.00019993,2]
[407803309,1772811045567,-105303.9376159,0.00019994,2]
[407803310,1772811045576,-8249.3277101,0.00019994,2]
[407803311,1772811045585,-46775.5727655,0.00019994,2]
[407803312,1772811045595,-6628.2508957,0.00019994,2]
[407803313,1772811045605,-151.0,0.00019997,2]
[407803314,1772811045616,-300.0,0.00019999,2]
[407803315,1772811045626,-672.22275366,0.00019999,2]
[407803317,1772811045635,-300.0,0.00019999,2]
[407803318,1772811045646,-666.0,0.00019999,2]
[407803319,1772811045656,-500.0,0.00019999,2]
[407803320,1772811045665,-188.08,0.00019999,2]
[407803321,1772811045675,-150.0,0.00019999,2]
[407803322,1772811045684,-183.31183954,0.00019999,2]
[407803323,1772811045694,-2178.0,0.0002,2]
[407803324,1772811045703,-563.0,0.0002,2]
[407803325,1772811045713,-500.0,0.0002,2]
[407803326,1772811045722,-6727408.82550933,0.0002,2]
[407803328,1772811046669,-716.49020845,0.0002,2]
[407803329,1772811046682,-992.10538075,0.0002,2]
[407803330,1772811046695,-2331.28214248,0.0002,2]
[407803331,1772811046722,-5563841.94031083,0.0002,2]
[407803332,1772811046731,-1474.82784586,0.0002,5]
[407803333,1772811046742,-2912146.67701644,0.0002,2]
[407803334,1772811046777,-412.8989822,0.0002,2]
[407803335,1772811046926,-2725.86108145,0.00014534,2]
[407803336,1772811046936,-4141.30154321,0.0002,2]
[407803337,1772811047024,-328.45146837,0.0002,2]
[407803338,1772811047150,-2009.60503429,0.0002,2]
[407803339,1772811047162,-1138.00561177,0.0002,2]
[407803340,1772811047182,-2743.91278563,0.0002,2]
[407803341,1772811060252,504.0,0.0001342,2]
[407803343,1772811154834,500.0,0.00014406,2]
[407803344,1772811174238,165.23,0.00013862,2]
[407803345,1772811221069,168.46,0.00014,2]
[407803346,1772811297134,175.5040556,0.00014407,2]
[407803347,1772811311297,357.5607,0.00014406,2]
[407803348,1772811385189,2500.0,0.00014407,2]
[407803354,1772811652321,1863062.78797337,0.00014407,2]
[407803355,1772811664040,-300.0,0.00014406,2]
[407803356,1772811667066,157.0,0.00014407,3]
[407803357,1772811669762,154.0,0.00014407,3]
[407803358,1772811674872,7032.04138569,0.00014405,2]
[407803359,1772811681358,358.98116355,0.00014406,2]
[407803360,1772811693209,1697.98745076,0.00014119,2]
[407803361,1772811693234,4202.53754924,0.00014119,2]
[407803362,1772811693433,477.915,0.00014119,2]
[407803364,1772811726538,158.0,0.00014407,2]
[407803365,1772811728996,154.0,0.00014407,2]
[407803366,1772811729151,1104.12012902,0.00014406,2]
[407803368,1772811731099,-2756.809729,0.00014407,2]
[407803369,1772811731236,-10000.01,0.00014407,2]
[407803370,1772811731460,-10000.01,0.00014407,2]
[407803371,1772811731712,-10000.01,0.00014407,2]
[407803372,1772811731990,-10000.01,0.00014407,2]
[407803373,1772811732219,-10000.01,0.00014407,2]
[407803374,1772811732399,-10000.01,0.00014407,2]
[407803375,1772811732628,-10000.01,0.00014407,2]
[407803376,1772811732865,-10000.01,0.00014407,2]
[407803377,1772811736418,-10000.01,0.00014407,2]
[407803378,1772811736554,-10000.01,0.00014407,2]
[407803379,1772811754861,500.0,0.00014406,2]
[407803380,1772811754892,200.0,0.00014406,2]
[407803381,1772811754932,500.0,0.00014406,2]
[407803382,1772811754972,500.0,0.00014406,2]
[407803383,1772811755016,500.0,0.00014406,2]
[407803384,1772811755077,500.0,0.00014406,2]
[407803385,1772811755137,588.31526184,0.00014406,2]
[407803386,1772811755223,500.0,0.00014406,2]
[407803387,1772811781550,300.0,0.00014406,2]
[407803388,1772811782886,500.0,0.00014406,2]
[407803389,1772811783035,500.0,0.00014406,2]
[407803390,1772811792269,158.0,0.00014407,2]
[407803391,1772811794622,155.0,0.00014407,2]
[407803392,1772811804028,1575.0,0.00014407,2]
[407803393,1772811810774,-3023.69473816,0.00014407,2]
[407803395,1772811816284,-10000.01,0.00014407,2]
[407803396,1772811816525,-10000.01,0.00014407,2]
[407803397,1772811816794,-10000.01,0.00014407,2]
[407803398,1772811817052,-10000.01,0.00014407,2]
[407803399,1772811817308,-10000.01,0.00014407,2]
[407803400,1772811818124,-10000.01,0.00014407,2]
[407803401,1772811818153,-10000.01,0.00014407,2]
[407803402,1772811818178,-10000.01,0.00014407,2]
[407803403,1772811818375,-10000.01,0.00014407,2]
[407803404,1772811818776,165.40867685,0.00014307,2]
[407803405,1772811836600,-500.0,0.00014406,2]
[407803406,1772811844940,158.0,0.00014407,2]
[407803407,1772811862006,2500.0,0.00014307,2]
[407803408,1772811872690,601.29830424,0.00014406,2]
[407803409,1772811875323,1008.35756595,0.00014406,5]